Workbook

Sheet Auswahl
B2: =Translation!A3 -> Pressure loss
B3: IMT/TR 06/14
C5: =Translation!A6 -> Input values | H5: =Translation!A43 -> Calculated values
C7: =Translation!A7 -> System | H7: =Translation!A45 -> Hydraulic diameter | I7: =Berechnung!D97 -> 16,0 mm
C9: =Translation!A8 -> Medium | H9: =Translation!A46 -> Cross-section | I9: =Berechnung!D98 -> 201 mm²
C11: =Translation!A9 -> Temperature | H11: =Translation!A47 -> Density | I11: =Berechnung!D103 -> 983,2 kg/m³
C13: =Translation!A10 -> Pipe type | H13: =Translation!A48 -> Kinematic viscosity | I13: =Berechnung!D104 -> 0,5 mm²/s
C15: =IF(Berechnung!G5=Berechnung!H11,Berechnung!D125,Translation!A11) -> Diameter | D15: x | H15: =Translation!A49 -> Reynolds number | I15: =Berechnung!D105 -> 7.368.284
C17: =Translation!A14&" | "&Translation!A16 -> Volume flow | unit | D17: 160 | H17: =Translation!A51 -> Flow type | I17: =Berechnung!D113 -> Turbulent | Transition zone
C19: =Translation!A15&" | "&Translation!A16 -> Pipe length | unit | D19: 10 | H19: =Translation!A52 -> Pipe-friction | I19: =Berechnung!D117 -> 0,0121
C21: =Translation!A59&" "&Translation!A58 -> Sum Zeta-values | D21: 0 | H21: =Translation!A50 -> Surface roughness | I21: =Berechnung!D106 -> 0,002 mm
C23: =Translation!A17 -> Results | H23: =Translation!A3&" "&Translation!A4 -> Pressure loss Pipe system | I23: =Berechnung!D119 -> 1.815.194,47 mbar
C25: =Translation!A3&" | "&Translation!A16 -> Pressure loss | unit | D25: =Berechnung!D122 -> 1.815.194,47 | H25: =Translation!A3&" "&Translation!A58 -> Pressure loss Zeta-values | I25: =Berechnung!D121 -> 0,00 mbar
C27: =Translation!A22 -> Speed | D27: =Berechnung!D102 -> 221,05 m/s
C29: =Translation!A23 -> Capacity | D29: =IF(Berechnung!W5=Berechnung!W7,Berechnung!D123,Berechnung!D124) -> 2,01 Litres

Sheet Berechnung (hidden)
A2: Comboboxen
A3: Anwendung | B3: Medium | F3: Temperatur | G3: Rohrart | M3: Volumenstrom | P3: Rohrlänge | S3: Druckverlust | W3: Ergebnisse | X3: Sprache | Z3: Iteration
B4: Heizung | C4: Lüftung | D4: Sole | E4: Solar | G4: Heizung | H4: Lüftung | I4: Sole | J4: Solar | K4: Nennweite | L4: Rundrohr ? | M4: Wert | N4: Einheit | O4: in m³/s | P4: Wert | Q4: Einheit | R4: in m | U4: absolut | V4: Umrechnung | X4: Nummer | Y4: Wert | Z4: Lambda-Übergang
A5: Heating system | B5: Water | F5: 60 °C | G5: Copper pipe | K5: Cu 18 x 1,0 | L5: =IF(G5=H11,FALSE,TRUE) -> TRUE | M5: =Auswahl!D17 -> 160 | N5: m³ / h | O5: =M5/VLOOKUP(N5,N6:O37,2,FALSE) -> 0.04444444444 | P5: =Auswahl!D19 -> 10 | Q5: m | R5: =P5/VLOOKUP(Q5,Q6:R37,2,FALSE) -> 10 | U5: mbar | V5: =VLOOKUP(U5,U6:V37,2,FALSE) -> 1 | W5: Absolute Werte | X5: 2 | Y5: =VLOOKUP(X5,X6:Y37,2,FALSE) -> | English | Z5: =Z36 -> 0.01209082676
A7: =Translation!A24 -> Heating system | B7: =Translation!A28 -> Water | C7: =Translation!A29 -> Air | D7: =Translation!$A$30&" 10 %" -> Ethylen glycol 10 % | E7: Tyfocor H-30 L | F7: 0 °C | G7: =Translation!A32 -> Copper pipe | H7: =Translation!A35 -> Folded pipe | I7: =Translation!A33 -> PE-Pipe | J7: =Translation!A32 -> Copper pipe | N7: m³ / h | O7: 3600 | Q7: m | R7: 1 | U7: mbar | V7: 1 | W7: =Translation!A19 -> Specific values | X7: 1 | Y7: | Deutsch | Z7: =(1/(-2*LOG10((2.51/($C$105*SQRT(0.03)))+($C$106/(3.71*$C$97)))))^2 -> 0.01199738423
A8: =Translation!A26 -> Heat source system | D8: =Translation!$A$30&" 20 %" -> Ethylen glycol 20 % | F8: 20 °C | G8: =Translation!A33 -> PE-Pipe | H8: =Translation!A36 -> Flat duct LFK | I8: =Translation!A32 -> Copper pipe | J8: =Translation!A41 -> Solar flex pipe | N8: m³ / min | O8: 60 | Q8: mm | R8: 1000 | U8: bar | V8: 1000 | W8: =Translation!A20 -> Total values | X8: 2 | Y8: | English | Z8: =(1/(-2*LOG10((2.51/($C$105*SQRT(Z7)))+($C$106/(3.71*$C$97)))))^2 -> 0.01209180694
A9: =Translation!A27 -> Solar system | D9: =Translation!$A$30&" 30 %" -> Ethylen glycol 30 % | F9: 40 °C | G9: =Translation!A34 -> Steel pipe | H9: =Translation!A40 -> Pluggit-System | I9: =Translation!A34 -> Steel pipe | N9: m³ / s | O9: 1 | Q9: cm | R9: 100 | U9: Pa | V9: 0.01 | X9: 3 | Y9: | Nederlands | Z9: 0.01209081654
A10: =Translation!A25 -> Ventilation system | D10: =Translation!$A$30&" 40 %" -> Ethylen glycol 40 % | F10: 60 °C | H10: =Translation!A38 -> Flexible pipe LVS | N10: l / h | O10: 3600000 | U10: hPa | V10: 1 | X10: 4 | Y10: | Francais | Z10: 0.01209082687
D11: =Translation!$A$30&" 50 %" -> Ethylen glycol 50 % | F11: 80 °C | H11: =Translation!A39 -> Rectangle duct | N11: l / min | O11: 60000 | U11: kPa | V11: 10 | X11: 5 | Y11: | Suomi | Z11: 0.01209082676
D12: =Translation!$A$30&" 60 %" -> Ethylen glycol 60 % | H12: =Translation!A37 -> Flexible duct LVE | N12: l / s | O12: 1000 | U12: mWS | V12: 98.067 | X12: 6 | Y12: | Dansk | Z12: 0.01209082676
D13: =Translation!$A$31&" 20 %" -> Ethanol 20 % | U13: mmWS | V13: 0.098068 | Z13: 0.01209082676
D14: =Translation!$A$31&" 30 %" -> Ethanol 30 % | Z14: 0.01209082676
D15: =Translation!$A$31&" 40 %" -> Ethanol 40 % | Z15: 0.01209082676
D16: =Translation!$A$31&" 50 %" -> Ethanol 50 % | Z16: 0.01209082676
Z17: 0.01209082676
Z18: 0.01209082676
Z19: 0.01209082676
Z20: 0.01209082676
Z21: 0.01209082676
Z22: 0.01209082676
Z23: 0.01209082676
Z24: 0.01209082676
Z25: 0.01209082676
Z26: 0.01209082676
Z27: 0.01209082676
Z28: 0.01209082676
Z29: 0.01209082676
Z30: 0.01209082676
Z31: 0.01209082676
Z32: 0.01209082676
Z33: 0.01209082676
Z34: 0.01209082676
Y35: (VBA-Abfrage) | Z35: 0.01209082676
Y36: FI gewählt? | Z36: 0.01209082676
Y37: =IF(Y5=Y11,TRUE,FALSE) -> FALSE
A39: Nennweiten
A40: =G7 -> Copper pipe | E40: =G8 -> PE-Pipe | I40: =G9 -> Steel pipe | M40: =H7 -> Folded pipe | Q40: =H8 -> Flat duct LFK | U40: =H9 -> Pluggit-System | Y40: =H10 -> Flexible pipe LVS | AC40: =H11 -> Rectangle duct | AH40: =J8 -> Solar flex pipe | AL40: =H12 -> Flexible duct LVE
A41: Nennweite | B41: d-innen | C41: Querschnitt | D41: Rauhigkeit | E41: Nennweite | F41: d-innen | G41: Querschnitt | H41: Rauhigkeit | I41: Nennweite | J41: d-innen | K41: Querschnitt | L41: Rauhigkeit | M41: Nennweite | N41: d-innen | O41: Querschnitt | P41: Rauhigkeit | Q41: Nennweite | R41: Fläche | S41: dHydr | T41: Rauhigkeit | U41: Nennweite | V41: Fläche | W41: dHydr | X41: Rauhigkeit | Y41: Nennweite | Z41: d-innen | AA41: Querschnitt | AB41: Rauhigkeit | AC41: Breite | AD41: Höhe | AE41: Fläche | AF41: dHydr | AG41: Rauhigkeit | AH41: Nennweite | AI41: d-innen | AJ41: Querschnitt | AK41: Rauhigkeit | AL41: Nennweite | AM41: Fläche | AN41: dHydr | AO41: Rauhigkeit
A42: =$K$5 -> Cu 18 x 1,0 | B42: =VLOOKUP(A42,A43:B80,2,FALSE) -> 0.016 | C42: =VLOOKUP(A42,A43:C80,3,FALSE) -> 0.0002010619298 | D42: 0.0015 | E42: =$K$5 -> Cu 18 x 1,0 | F42: =VLOOKUP(E42,E43:F80,2,FALSE) ->  | G42: =VLOOKUP(E42,E43:G80,3,FALSE) ->  | H42: 0.007 | I42: =$K$5 -> Cu 18 x 1,0 | J42: =VLOOKUP(I42,I43:J80,2,FALSE) ->  | K42: =VLOOKUP(I42,I43:K80,3,FALSE) ->  | L42: 0.02 | M42: =$K$5 -> Cu 18 x 1,0 | N42: =VLOOKUP(M42,M43:N80,2,FALSE) ->  | O42: =VLOOKUP(M42,M43:O80,3,FALSE) ->  | P42: 0.1 | Q42: =$K$5 -> Cu 18 x 1,0 | R42: =VLOOKUP(Q42,Q43:R80,2,FALSE) ->  | S42: =VLOOKUP(Q42,Q43:S80,3,FALSE) ->  | T42: 0.15 | U42: =$K$5 -> Cu 18 x 1,0 | V42: =VLOOKUP(U42,U43:V80,2,FALSE) ->  | W42: =VLOOKUP(U42,U43:W80,3,FALSE) ->  | X42: =VLOOKUP(U42,U43:X80,4,FALSE) ->  | Y42: =$K$5 -> Cu 18 x 1,0 | Z42: =VLOOKUP(Y42,Y43:Z80,2,FALSE) ->  | AA42: =VLOOKUP(Y42,Y43:AA80,3,FALSE) ->  | AB42: =VLOOKUP(Y42,Y43:AB80,4,FALSE) ->  | AC42: =AC44/1000 -> 0.13 | AD42: =AD44/1000 -> 0.052 | AE42: =AC42*AD42 -> 0.00676 | AF42: =2*AE42/(AC42+AD42) -> 0.07428571429 | AG42: 0.15 | AH42: =$K$5 -> Cu 18 x 1,0 | AI42: =VLOOKUP(AH42,AH43:AI80,2,FALSE) ->  | AJ42: =VLOOKUP(AH42,AH43:AJ80,3,FALSE) ->  | AK42: 1.365 | AL42: =$K$5 -> Cu 18 x 1,0 | AM42: =VLOOKUP($AL$42,$AL$43:$AO$80,2,FALSE) ->  | AN42: =VLOOKUP($AL$42,$AL$43:$AO$80,3,FALSE) ->  | AO42: =VLOOKUP($AL$42,$AL$43:$AO$80,4,FALSE) -> 
A44: Cu 18 x 1,0 | B44: 0.016 | C44: 0.0002010619298 | E44: DN 20 (25 x 2,3) | F44: 0.0204 | G44: 0.0003268512997 | I44: DN 20 (27 x 2,7) - ¾ Zoll | J44: 0.0216 | K44: 0.0003664353671 | M44: DN 80 | N44: 0.08 | O44: 0.005026548246 | Q44: Kanal 50 x 100 | R44: 0.00504509 | S44: 0.0669998672 | U44: PK 100 (92 x 50) | V44: 0.003825557368 | W44: 0.08907186212 | X44: 11 | Y44: LVS 75 mm | Z44: 0.064 | AA44: 0.003216990877 | AB44: 0.41 | AC44: 130 | AD44: 52 | AH44: =Translation!A42&" DN 20" -> Flex pipe DN 20 | AI44: 0.0197 | AJ44: 0.0003048051732 | AL44: 130 x 52 mm | AM44: 0.00415 | AN44: 0.06 | AO44: 0.07
A45: Cu 22 x 1,0 | B45: 0.02 | C45: 0.0003141592654 | E45: =IF(Y37=TRUE,"DN 25 (32 x 2,0)","DN 25 (32 x 2,9)") -> DN 25 (32 x 2,9) | F45: =IF(Y37=TRUE,0.028,0.0262) -> 0.0262 | G45: =IF(Y37=TRUE,0.000615752160103599,0.000539128715282544) -> 0.0005391287153 | I45: DN 25 (34 x 3,3) - 1 Zoll | J45: 0.0272 | K45: 0.0005810689772 | M45: DN 100 | N45: 0.1 | O45: 0.007853981634 | Q45: Kanal 50 x 150 | R45: 0.00756009 | S45: 0.07537477567 | U45: PK 150 (113 x 50) | V45: 0.004833557368 | W45: 0.1060592774 | X45: 24 | Y45: LVS 90 mm | Z45: 0.0775 | AA45: 0.004717297719 | AB45: 0.58
A46: Cu 28 x 1,5 | B46: 0.025 | C46: 0.0004908738521 | E46: =IF(Y37=TRUE,"DN 32 (40 x 2,4)","DN 32 (40 x 3,7)") -> DN 32 (40 x 3,7) | F46: =IF(Y37=TRUE,0.0352,0.0326) -> 0.0326 | G46: =IF(Y37=TRUE,0.000973139740375974,0.000834689752132272) -> 0.0008346897521 | I46: DN 32 (42 x 3,3) - 1¼ Zoll | J46: 0.0359 | K46: 0.001012229007 | M46: DN 125 | N46: 0.125 | O46: 0.0122718463 | Q46: Kanal 50 x 200 | R46: 0.01007509 | S46: 0.08040774142 | U46: PK 200 (172 x 57) | V46: 0.008700829444 | W46: 0.1511297977 | X46: 45
A47: Cu 35 x 1,5 | B47: 0.032 | C47: 0.0008042477193 | E47: DN 40 (50 x 4,6) | F47: 0.0408 | G47: 0.001307405199 | I47: DN 40 (48 x 3,3) - 1½ Zoll | J47: 0.0418 | K47: 0.001372279087 | M47: DN 150 | N47: 0.15 | O47: 0.01767145868 | Q47: Kanal 80 x 200 | R47: 0.01608409 | S47: 0.1146406985
A48: Cu 42 x 1,5 | B48: 0.039 | C48: 0.001194590607 | E48: DN 50 (63 x 5,8) | F48: 0.0514 | G48: 0.002074990532 | I48: DN 50 (60 x 3,7) - 2 Zoll | J48: 0.053 | K48: 0.002206183441 | M48: DN 160 | N48: 0.16 | O48: 0.02010619298
A49: Cu 54 x 2,0 | B49: 0.05 | C49: 0.001963495408 | E49: DN 65 (75 x 6,8) | F49: 0.0614 | G49: 0.00296091966 | I49: DN 65 (76 x 3,7) - 2½ Zoll | J49: 0.0688 | K49: 0.003717635083 | M49: DN 200 | N49: 0.2 | O49: 0.03141592654
A50: Cu 76,1 x 2,0 | B50: 0.0721 | C50: 0.004082821667 | E50: DN 80 (90 x 8,2) | F50: 0.0736 | G50: 0.004254470435 | I50: DN 80 (89 x 4,1) - 3 Zoll | J50: 0.0808 | K50: 0.005127581865 | M50: DN 250 | N50: 0.25 | O50: 0.04908738521
A51: Cu 88,9 x 2,0 | B51: 0.0849 | C51: 0.005661157816 | E51: DN 100 (125 x 11,4) | F51: 0.1022 | G51: 0.008203358153 | I51: DN 100 (114 x 4,5) - 4 Zoll | J51: 0.1053 | K51: 0.008708565522 | M51: DN 315 | N51: 0.315 | O51: 0.07793113276
A52: Cu 108 x 2,5 | B52: 0.103 | C52: 0.008332289115 | E52: DN 125 (160 x 14,6) | F52: 0.1308 | G52: 0.01343709443 | I52: DN 125 (140 x 4,9) - 5 Zoll | J52: 0.13 | K52: 0.01327322896 | M52: DN 400 | N52: 0.4 | O52: 0.1256637061
A53: Cu 133 x 3,0 | B53: 0.127 | C53: 0.01266768698 | E53: DN 150 (180 x 16,4) | F53: 0.1472 | G53: 0.01701788174 | I53: DN 150 (165 x 4,9) - 6 Zoll | J53: 0.1554 | K53: 0.01896670591 | M53: DN 500 | N53: 0.5 | O53: 0.1963495408
A54: Cu 159 x 3,0 | B54: 0.153 | C54: 0.01838538561 | E54: DN 160 (200 x 18,2) | F54: 0.1636 | G54: 0.02102115043 | M54: DN 560 | N54: 0.56 | O54: 0.246300864
A55: Cu 219 x 3,0 | B55: 0.213 | C55: 0.03563272928 | E55: DN 180 (225 x 20,5) | F55: 0.184 | G55: 0.02659044022 | M55: DN 630 | N55: 0.63 | O55: 0.3117245311
A56: Cu 267 x 3,0 | B56: 0.261 | C56: 0.05350210829 | E56: DN 200 (250 x 22,7) | F56: 0.2046 | G56: 0.03287767818 | M56: DN 800 | N56: 0.8 | O56: 0.5026548246
E57: DN 225 (280 x 25,4) | F57: 0.2292 | G57: 0.04125903897 | M57: DN 1000 | N57: 1 | O57: 0.7853981634
E58: DN 250 (315 x 28,6) | F58: 0.2578 | G58: 0.05219822167
A82: Stoffdaten
A83: Temperatur | B83: =B7 -> Water | D83: =C7 -> Air | F83: =D7 -> Ethylen glycol 10 % | H83: =D8 -> Ethylen glycol 20 % | J83: =D9 -> Ethylen glycol 30 % | L83: =D10 -> Ethylen glycol 40 % | N83: =D11 -> Ethylen glycol 50 % | P83: =D12 -> Ethylen glycol 60 % | R83: =D13 -> Ethanol 20 % | T83: =D14 -> Ethanol 30 % | V83: =D15 -> Ethanol 40 % | X83: =D16 -> Ethanol 50 % | Z83: =E7 -> Tyfocor H-30 L
B84: Dichte | C84: Viskosität *10^6 | D84: Dichte | E84: Viskosität | F84: Dichte | G84: Viskosität | H84: Dichte | I84: Viskosität | J84: Dichte | K84: Viskosität | L84: Dichte | M84: Viskosität | N84: Dichte | O84: Viskosität | P84: Dichte | Q84: Viskosität | R84: Dichte | S84: Viskosität | T84: Dichte | U84: Viskosität | V84: Dichte | W84: Viskosität | X84: Dichte | Y84: Viskosität | Z84: Dichte | AA84: Viskosität
A85: =F7 -> 0 °C | B85: 999.84 | C85: 1.79 | D85: 1.293 | E85: 13.2 | F85: 1018 | G85: 2.3 | H85: 1035 | I85: 3.1 | J85: 1052 | K85: 4.3 | L85: 1069 | M85: 6.1 | N85: 1084 | O85: 8.6 | P85: 1097 | Q85: 13.6 | R85: 976 | S85: 17.3 | T85: 965 | U85: 1.73 | V85: 949 | W85: 1.74 | X85: 929 | Y85: 1.74 | Z85: 1053 | AA85: 13
A86: =F8 -> 20 °C | B86: 998.3 | C86: 1.01 | D86: 1.205 | E86: 15 | Z86: 1043 | AA86: 5.22
A87: 40 °C | B87: 992.3 | C87: 0.66 | D87: 1.128 | E87: 16.9 | Z87: 1030 | AA87: 2.6
A88: 60 °C | B88: 983.2 | C88: 0.48 | D88: 1.06 | E88: 18.9 | Z88: 1017 | AA88: 1.8
A89: 80 °C | B89: 971.6 | C89: 0.37 | D89: 0.999 | E89: 20.9 | Z89: 1002 | AA89: 1.1
A90: Dichte Gewählt | B90: =VLOOKUP($F$5,$A$85:B89,2,FALSE) -> 983.2 | D90: =VLOOKUP($F$5,$A$85:D89,4,FALSE) -> 1.06 | F90: =VLOOKUP($F$5,$A$85:F89,6,FALSE) -> 0 | H90: =VLOOKUP($F$5,$A$85:H89,8,FALSE) -> 0 | J90: =VLOOKUP($F$5,$A$85:J89,10,FALSE) -> 0 | L90: =VLOOKUP($F$5,$A$85:L89,12,FALSE) -> 0 | N90: =VLOOKUP($F$5,$A$85:N89,14,FALSE) -> 0 | P90: =VLOOKUP($F$5,$A$85:P89,16,FALSE) -> 0 | R90: =VLOOKUP($F$5,$A$85:R89,18,FALSE) -> 0 | T90: =VLOOKUP($F$5,$A$85:T89,20,FALSE) -> 0 | V90: =VLOOKUP($F$5,$A$85:V89,22,FALSE) -> 0 | X90: =VLOOKUP($F$5,$A$85:X89,24,FALSE) -> 0 | Z90: =VLOOKUP($F$5,$A$85:Z89,26,FALSE) -> 1017
A91: Viskosität Gewählt | B91: =VLOOKUP($F$5,$A$85:C89,3,FALSE) -> 0.48 | D91: =VLOOKUP($F$5,$A$85:E89,5,FALSE) -> 18.9 | F91: =VLOOKUP($F$5,$A$85:G89,7,FALSE) -> 0 | H91: =VLOOKUP($F$5,$A$85:I89,9,FALSE) -> 0 | J91: =VLOOKUP($F$5,$A$85:K89,11,FALSE) -> 0 | L91: =VLOOKUP($F$5,$A$85:M89,13,FALSE) -> 0 | N91: =VLOOKUP($F$5,$A$85:O89,15,FALSE) -> 0 | P91: =VLOOKUP($F$5,$A$85:Q89,17,FALSE) -> 0 | R91: =VLOOKUP($F$5,$A$85:S89,19,FALSE) -> 0 | T91: =VLOOKUP($F$5,$A$85:U89,21,FALSE) -> 0 | V91: =VLOOKUP($F$5,$A$85:W89,23,FALSE) -> 0 | X91: =VLOOKUP($F$5,$A$85:Y89,25,FALSE) -> 0 | Z91: =VLOOKUP($F$5,$A$85:AG89,27,FALSE) -> 1.8
A94: Berechnungen
A95: Wert | B95: Einheit | C95: Rundrohr | D95: Übergabe Ergebnis
A97: dInnen / dHydr | B97: m | C97: =IF(G5=A40,B42,IF(G5=E40,F42,IF(G5=I40,J42,IF(G5=M40,N42,IF(G5=Q40,S42,IF(G5=U40,W42,IF(G5=AC40,AF42,IF(G5=Y40,Z42,IF(G5=AH40,AI42,AN42))))))))) -> 0.016 | D97: =FIXED(C97*1000,1)&" mm" -> 16,0 mm
A98: Querschnitt | B98: m² | C98: =IF(G5=A40,C42,IF(G5=E40,G42,IF(G5=I40,K42,IF(G5=M40,O42,IF(G5=Q40,R42,IF(G5=U40,V42,IF(G5=AC40,AE42,IF(G5=Y40,AA42,IF(G5=AH40,AJ42,AM42))))))))) -> 0.0002010619298 | D98: =FIXED(C98*1000000,0)&" mm²" -> 201 mm²
A99: Länge | B99: m | C99: =R5 -> 10
A100: Zeta-Wert | B100: - | C100: =Auswahl!D21 -> 0 | D100: =C100 -> 0
A101: Volumenstrom | B101: m³/s | C101: =O5 -> 0.04444444444
A102: Geschwindigkeit | B102: m/s | C102: =C101/C98 -> 221.0485321 | D102: =FIXED(C102,2)&" m/s" -> 221,05 m/s
A103: Dichte | B103: kg/m³ | C103: =HLOOKUP(B5,B83:AG90,8,FALSE) -> 983.2 | D103: =FIXED(C103,1)&" kg/m³" -> 983,2 kg/m³
A104: Viskosität | B104: m²/s | C104: =HLOOKUP(B5,B83:AI91,9,FALSE)/10^6 -> 4.8e-07 | D104: =FIXED(C104*1000000,1)&" mm²/s" -> 0,5 mm²/s
A105: Reynolds | B105: - | C105: =C102*C97/C104 -> 7368284.402 | D105: =FIXED(C105,0) -> 7.368.284
A106: Rauhigkeit | B106: m | C106: =IF(G5=A40,D42,IF(G5=E40,H42,IF(G5=I40,L42,IF(G5=M40,P42,IF(G5=Q40,T42,IF(G5=U40,X42,IF(G5=AC40,AG42,IF(G5=Y40,AB42,IF(G5=AH40,AK42,AO42)))))))))/1000 -> 1.5e-06 | D106: =FIXED(C106*1000,3)&" mm" -> 0,002 mm
A107: Term 1 (Grenze glatt) | B107: - | C107: =(C97/C106)*LOG10(0.1*C97/C106) -> 32298.97305
A108: Term 2 (Grenze rauh) | B108: - | C108: =400*(C97/C106)*LOG10(3.715*C97/C106) -> 19618080.18
A109: Laminar? | B109: - | C109: =IF(C105<2320,TRUE,FALSE) -> FALSE | D109: =IF(C109=TRUE,Translation!A53,FALSE) -> FALSE
A110: Hydr. glatt ? | B110: - | C110: =IF(AND(C105>=2320,C105<C107),TRUE,FALSE) -> FALSE | D110: =IF(C110=TRUE,Translation!A54,FALSE) -> FALSE
A111: Übergang ? | B111: - | C111: =IF(AND(C105>C107,C105<C108),TRUE,FALSE) -> TRUE | D111: =IF(C111=TRUE,Translation!A55,FALSE) -> Turbulent | Transition zone
A112: Hydr. rauh ? | B112: - | C112: =IF(C105>C108,TRUE,FALSE) -> FALSE | D112: =IF(C112=TRUE,Translation!A56,FALSE) -> FALSE
A113: Lamba laminar (I) | B113: - | C113: =64/C105 -> 8.685875369e-06 | D113: =IF(D109<>FALSE,D109,IF(D110<>FALSE,D110,IF(D111<>FALSE,D111,IF(D112<>FALSE,D112)))) -> Turbulent | Transition zone
A114: Lambda hydr. Glatt (II) | B114: - | C114: =0.309/((LOG10(C105/7))^2) -> 0.008519974081
A115: Lamba Übergang (III) | B115: - | C115: =Z5 -> 0.01209082676
A116: Lamba hydr. rauh (IV) | B116: - | C116: =0.25/(LOG10(3.715*C97/C106))^2 -> 0.01182508928
A117: Lambda gewählt | B117: - | C117: =IF(C109=TRUE,C113,IF(C110=TRUE,C114,IF(C111=TRUE,C115,IF(C112=TRUE,C116)))) -> 0.01209082676 | D117: =FIXED(C117,4) -> 0,0121
A118: Druckverlust Rohr | B118: mbar | C118: =((C117*C99/C97)*(C103/2)*C102^2)*0.01 -> 1815194.473
A119: Druckverlust Rohr | B119: gewählte Einheit | C119: =C118/V5 -> 1815194.473 | D119: =FIXED(C119,2)&" "&U5 -> 1.815.194,47 mbar
A120: Druckverlust Zeta | B120: mbar | C120: =0.01*(C100*0.5*C103*C102^2) -> 0
A121: Druckverlust Zeta | B121: gewählte Einheit | C121: =C120/V5 -> 0 | D121: =FIXED(C121,2)&" "&U5 -> 0,00 mbar
A122: Summe Druckverlust | B122: gewählte Einheit | C122: =C119+C121 -> 1815194.473 | D122: =FIXED(C122,2) -> 1.815.194,47
A123: Inhalt | B123: l/m | C123: =C98*1000 -> 0.2010619298 | D123: =FIXED(C123,2)&" "&Translation!A61 -> 0,20 Litres/m
A124: Inhalt | B124: l | C124: =C98*C99*1000 -> 2.010619298 | D124: =FIXED(C124,2)&" "&Translation!A60 -> 2,01 Litres
A125: Ausgabe Kanal | D125: =Translation!A12&" [mm] x "&Translation!A13&"[mm]" -> Width [mm] x Height[mm]
A126: Ausgbe Rechenwerte | D126: ="| "&Translation!A43 -> | Calculated values
A127: Ausgabe Druck | D127: ="| "&Translation!A57 -> | Printout

Sheet Translation (hidden)
A2: English | B2: Deutsch | C2: English | D2: Nederlands | E2: Francais | F2: Suomi | G2: Dansk
A3: Pressure loss | B3: Druckverlust | C3: Pressure loss | D3: Drukverlies | E3: Perte de pression | F3: Painehäviöt | G3: Tryktab
A4: Pipe system | B4: Rohrleitung | C4: Pipe system | D4: Leiding | E4: système de tuyauterie | F4: Putkijärjestelmä | G4: Rørsystem
A5: Project | B5: Projekt | C5: Project | D5: Project | E5: Projet | F5: Projekti | G5: Projekt
A6: Input values | B6: Eingabewerte | C6: Input values | D6: Ingevoerde waarden | E6: valeurs d'entrée | F6: Syötetyt arvot | G6: Input værdier
A7: System | B7: System | C7: System | D7: Systeem | E7: système | F7: Järjestelmä | G7: System
A8: Medium | B8: Medium | C8: Medium | D8: Medium | E8: medium | F8: Neste | G8: Medie
A9: Temperature | B9: Temperatur | C9: Temperature | D9: Temperatuur | E9: température | F9: Nesteen lämpötila | G9: Temperatur
A10: Pipe type | B10: Rohrart | C10: Pipe type | D10: Leidingsoort | E10: type de tuyauterie | F10: Putkityyppi | G10: Rørtype
A11: Diameter | B11: Nennweite | C11: Diameter | D11: Nominale maat | E11: diamètre | F11: Halkaisija | G11: Diameter
A12: Width | B12: Breite | C12: Width | D12: Breedte | E12: largeur | F12: Leveys | G12: Bredde
A13: Height | B13: Höhe | C13: Height | D13: Hoogte | E13: hauteur | F13: Korkeus | G13: Højde
A14: Volume flow | B14: Volumenstrom | C14: Volume flow | D14: Volumestroom | E14: débit | F14: Tilavuusvirta | G14: Volumenflow
A15: Pipe length | B15: Rohrlänge | C15: Pipe length | D15: Leidinglengte | E15: longeur tuyauterie | F15: Putken pituus | G15: Rørlængde
A16: unit | B16: Einheit | C16: unit | D16: Eenheid | E16: unité | F16: yksikkö | G16: Enhed
A17: Results | B17: Ergebnisse | C17: Results | D17: Resultaten | E17: Résultats | F17: Tulokset | G17: Resultat
A18: Values | B18: Anzeige | C18: Values | D18: Tonen | E18: Valeurs | F18: Arvot | G18: Værdier
A19: Specific values | B19: Spezifische Werte | C19: Specific values | D19: Specifieke waarden | E19: Valeurs spécifiques | F19: Erityisarvot | G19: Specifikke værdier
A20: Total values | B20: Absolute Werte | C20: Total values | D20: Absolute waarden | E20: Valeurs totales | F20: Yhteisarvot | G20: Absolutte værdier
A21: Pressure loss | B21: Druckverlust | C21: Pressure loss | D21: Drukverlies | E21: perte de pression | F21: Painehäviöt | G21: Tryktab
A22: Speed | B22: Geschwindigkeit | C22: Speed | D22: Snelheid | E22: vitesse | F22: Nopeus | G22: Hastighed
A23: Capacity | B23: Rohrinhalt | C23: Capacity | D23: Leidinginhoud | E23: capacité | F23: Tilavuus | G23: Kapacitet
A24: Heating system | B24: Heizungsanlage | C24: Heating system | D24: Verwarmingssysteem | E24: système de chauffage | F24: Lämmitysjärjestelmä | G24: Varmesystem
A25: Ventilation system | B25: Lüftungsanlage | C25: Ventilation system | D25: Ventilatiesysteem | E25: sytème de ventilation | F25: Ilmanvaihtojärjestelmä | G25: Ventilationssystem
A26: Heat source system | B26: Wärmequellenanlage | C26: Heat source system | D26: Bronsysteem | E26: système de source de chaleur | F26: Lämmönlähdejärjestelmä | G26: Varmekildesystem
A27: Solar system | B27: Solaranlage | C27: Solar system | D27: Solarsysteem | E27: sytème solaire | F27: Aurinkokeräinjärjestelmä | G27: Solfangersystem
A28: Water | B28: Wasser | C28: Water | D28: Water | E28: eau | F28: Vesi | G28: Vand
A29: Air | B29: Luft | C29: Air | D29: Lucht | E29: air | F29: Ilma | G29: Luft
A30: Ethylen glycol | B30: Ethylenglykol | C30: Ethylen glycol | D30: Ethyleenglycol | E30: éthylène glycol | F30: Etyleeni-glykoli | G30: Ethylenglykol
A31: Ethanol | B31: Ethanol | C31: Ethanol | D31: Ethanol | E31: éthanol | F31: Etanoli | G31: Ethanol
A32: Copper pipe | B32: Kupferrohr | C32: Copper pipe | D32: Koperenleiding | E32: tuyauterie en cuivre | F32: Kupariputki | G32: Kobberrør
A33: PE-Pipe | B33: PE-Rohr | C33: PE-Pipe | D33: PE leiding | E33: tube PE | F33: PE-putki | G33: PE-Rør
A34: Steel pipe | B34: Stahlrohr | C34: Steel pipe | D34: Stalenleiding | E34: tuyaux en acier | F34: Teräsputki | G34: Stålrør
A35: Folded pipe | B35: Wickelfalzrohr | C35: Folded pipe | D35: Wikkelbuis | E35: tuyaux pliés | F35: Taitettu putki | G35: Spirorør
A36: Flat duct LFK | B36: Flachkanal LFK | C36: Flat duct LFK | D36: Platkanaal LFK | E36: conduit plat LFK | F36: Litteä kanava LFK | G36: Flad kanal LFK
A37: Flexible duct LVE | B37: Flexibler Kanal LVE | C37: Flexible duct LVE | D37: Flexibel kanaal LVE | E37: conduit flexible LVE | F37: Joustava kanava LVE | G37: Fleksibel kanal LVE
A38: Flexible pipe LVS | B38: Flexibles Rohr LVS | C38: Flexible pipe LVS | D38: Flexibele buis LVS | E38: tuyau flexible LVS | F38: Joustava putki LVS | G38: Fleksibel kanal LVS
A39: Rectangle duct | B39: Rechteckkanal | C39: Rectangle duct | D39: Rechthoekig kanaal | E39: conduit rectangulaire | F39: Kanttikanava | G39: Retangulert kanal
A40: Pluggit-System | B40: Pluggit-System | C40: Pluggit-System | D40: Pluggit systeem | E40: système PLUGIN | F40: Pluggit-järjestelmä | G40: Pluggit-System
A41: Solar flex pipe | B41: Solar-Flexrohr | C41: Solar flex pipe | D41: Solar-Flexibele buis | E41: tuyau flexible solaire | F41: Aurinkokeräimen joustava putki | G41: Fleksibelt solfangerrør
A42: Flex pipe | B42: Flexrohr | C42: Flex pipe | D42: Flexibele buis | E42: tuyau flexible | F42: Joustava putki | G42: Flexrør
A43: Calculated values | B43: Rechenwerte | C43: Calculated values | D43: Berekende waarden | E43: valeurs calculées | F43: Laskenta-arvot | G43: Beregnede værdier
A44: Inside diameter | B44: Innendurchmesser | C44: Inside diameter | D44: Binnendiameter | E44: diamètre intérieur | F44: Sisähalkaisija | G44: Inderdiameret
A45: Hydraulic diameter | B45: Hydraulischer Durchmesser | C45: Hydraulic diameter | D45: Hydraulische diameter | E45: diamètre hydraulique | F45: Hydraulinen halkaisija | G45: Hydrauliske diameter
A46: Cross-section | B46: Querschnittsfläche | C46: Cross-section | D46: Dwarsdoorsnede | E46: coupe transversale | F46: Poikkileikkaus | G46: Tværsnitsareal
A47: Density | B47: Dichte | C47: Density | D47: Dichtheid | E47: densité | F47: Tiheys | G47: Densitet
A48: Kinematic viscosity | B48: Kinematische Viskosität | C48: Kinematic viscosity | D48: Kinematische viscositeit | E48: viscosité cinématique | F48: Kinemaattinen viskositeetti | G48: Kinematisk viskositet
A49: Reynolds number | B49: Reynoldszahl | C49: Reynolds number | D49: Reynoldsgetal | E49: nombre de Reynolds | F49: Reynoldsin luku | G49: Reynolds tal
A50: Surface roughness | B50: Rohrrauhigkeit | C50: Surface roughness | D50: Oppervlakteruwheid | E50: rugosité de la conduite | F50: Pinnan karheus | G50: Overflademodstand
A51: Flow type | B51: Strömungsform | C51: Flow type | D51: Stromingsvorm | E51: type de flux | F51: Virtausmuoto | G51: Strømningstype
A52: Pipe-friction | B52: Rohrreibungszahl | C52: Pipe-friction | D52: Leiding wrijvingscoëfficiënt | E52: coefficient de friction de tuyaux | F52: Putken kitka | G52: Rør-friktionskoefficient
A53: Laminar flow | B53: Laminare Strömung | C53: Laminar flow | D53: Laminaire stroming | E53: flux laminaire | F53: Laminaarinen virtaus | G53: Laminar strømning
A54: Turbulent | Hydraulic smooth | B54: Turbulent | Hydraulisch glatt | C54: Turbulent | Hydraulic smooth | D54: Turbulent | Hydraulisch glad | E54: Turbulent | Hydraulique lisse | F54: Turbulenttinen | Hydraulisesti tasainen | G54: Turbulent | Hydraulisk glat
A55: Turbulent | Transition zone | B55: Turbulent | Übergangsgebiet | C55: Turbulent | Transition zone | D55: Turbulent | Overgangsgebied | E55: Turbulent | Zone de transition | F55: Turbulenttinen | Siirtymäkerros | G55: Turbulent | Overgangszone
A56: Turbulent | Hydraulic rough | B56: Turbulent | Hydraulisch rauh | C56: Turbulent | Hydraulic rough | D56: Turbulent | Hydraulisch ruw | E56: Turbulent | Hydraulique rugueuse | F56: Turbulenttinen | Hydraulisesti epätasainen | G56: Turbulent | Hydraulisk ru
A57: Printout | B57: Drucken | C57: Printout | D57: Afdrukken | E57: Imprimer | F57: Tuloste | G57: Udskriv
A58: Zeta-values | B58: Zeta-Werte | C58: Zeta-values | D58: Zeta-values | E58: Zeta-values | F58: Zeta-arvot | G58: Zeta-værdier
A59: Sum | B59: Summe | C59: Sum | D59: Sum | E59: Sum | F59: Summa | G59: Sum
A60: Litres | B60: Liter | C60: Litres | D60: Liter | E60: litres | F60: litraa | G60: Liter
A61: Litres/m | B61: Liter/m | C61: Litres/m | D61: Liter/m | E61: litres/m | F61: litraa/m | G61: Liter/m
A425: Eng | C425: Eng
A426: Eng | C426: Eng

Sheet Ausdruck (hidden)
B1: =Translation!A3 -> Pressure loss
B2: =Translation!A4 -> Pipe system
P3: =TODAY() -> 2015-11-16
A4: =Auswahl!C5 -> Input values
A5: =Auswahl!C9 -> Medium | K5: =Berechnung!B5 -> Water
A6: =Auswahl!C11 -> Temperature | K6: =Berechnung!F5 -> 60 °C
A7: =Auswahl!C13 -> Pipe type | K7: =Berechnung!G5 -> Copper pipe
A8: =IF(Berechnung!L5=TRUE,Translation!A11,Translation!A12&" x "&Translation!A13) -> Diameter | K8: =IF(Berechnung!L5=TRUE,Berechnung!K5,Berechnung!AC44&" mm x "&Berechnung!AD44&" mm") -> Cu 18 x 1,0
A9: =Translation!A14 -> Volume flow | K9: =Berechnung!M5&" "&Berechnung!N5 -> 160 m³ / h
A10: =Translation!A15 -> Pipe length | K10: =Berechnung!P5&" "&Berechnung!Q5 -> 10 m
A11: =Auswahl!C21 -> Sum Zeta-values | K11: =Auswahl!D21 -> 0
A13: =Auswahl!C23 -> Results
A14: =Translation!A21 -> Pressure loss | K14: =Auswahl!D25&" "&Berechnung!U5 -> 1.815.194,47 mbar
A15: =Translation!A22 -> Speed | K15: =Auswahl!D27 -> 221,05 m/s
A16: =Translation!A23 -> Capacity | K16: =Auswahl!D29 -> 2,01 Litres
A17: =Auswahl!H7 -> Hydraulic diameter | K17: =Auswahl!I7 -> 16,0 mm
A18: =Auswahl!H9 -> Cross-section | K18: =Auswahl!I9 -> 201 mm²
A19: =Auswahl!H21 -> Surface roughness | K19: =Auswahl!I21 -> 0,002 mm
A20: =Auswahl!H11 -> Density | K20: =Auswahl!I11 -> 983,2 kg/m³
A21: =Auswahl!H13 -> Kinematic viscosity | K21: =Auswahl!I13 -> 0,5 mm²/s
A22: =Auswahl!H15 -> Reynolds number | K22: =Auswahl!I15 -> 7.368.284
A23: =Auswahl!H17 -> Flow type | K23: =Auswahl!I17 -> Turbulent | Transition zone
A24: =Auswahl!H19 -> Pipe-friction | K24: =Auswahl!I19 -> 0,0121
